[Event "Fagernes GM Swiss 2020"]
[Site "Fagernes"]
[Date "2020.10.05"]
[Round "2.12"]
[White "Galinsky, Timofey"]
[Black "Vestby-Ellingsen, Mads"]
[Result "1/2-1/2"]
[ECO "A48"]
[WhiteElo "2370"]
[BlackElo "2362"]
[Annotator "NA"]
[PlyCount "151"]
[EventDate "2020.10.04"]
[EventType "swiss"]
[EventCountry "NOR"]
[SourceTitle "playchess.com"]
[Source "ChessBase"]
[SourceQuality "1"]
[TimeControl "40/6000+30:2400+30"]

1. d4 {[%emt 0:00:00]} Nf6 {[%emt 0:00:00]} 2. c3 {[%emt 0:00:00]} g6 {[%emt 0:00:24]} 3. Bf4 {[%emt 0:00:35]} Bg7 {[%emt 0:00:36]} 4. Nf3 {[%emt 0:01:23]} O-O {[%emt 0:00:58]} 5. e3 {[%emt 0:01:20]} d6 {[%emt 0:00:25]} 6. h3 {[%emt 0:02:13]} Nbd7 {[%emt 0:02:16]} 7. Bc4 {[%emt 0:08:52]} c5 {[%emt 0:03:36]} 8. Nbd2 {[%emt 0:02:55]} b6 {[%emt 0:06:54]} 9. O-O {[%emt 0:03:21]} Bb7 {[%emt 0:00:34]} 10. a4 {[%emt 0:02:18]} a6 {[%emt 0:08:55]} 11. Qe2 {[%emt 0:03:22]} Ra7 {[%emt 0:02:52]} 12. Bh2 {[%emt 0:12:34]} Qa8 {[%emt 0:01:23]} 13. Rfd1 {[%emt 0:00:29]} Ne4 {[%emt 0:18:37]} 14. Nf1 {[%emt 0:15:14]} Ndf6 {[%emt 0:05:22]} 15. Ne1 {[%emt 0:02:12]} Nd7 {[%emt 0:08:08]} 16. f3 {[%emt 0:07:02]} Nef6 {[%emt 0:00:16]} 17. Nd3 {[%emt 0:00:35]} Rc8 {[%emt 0:04:30]} 18. Nf2 {[%emt 0:07:05]} cxd4 {[%emt 0:18:33]} 19. exd4 {[%emt 0:00:26]} Nf8 {[%emt 0:01:51]} 20. Ne3 {[%emt 0:02:34]} Nd5 {[%emt 0:00:53]} 21. Nxd5 {[%emt 0:02:45]} Bxd5 {[%emt 0:00:11]} 22. Bxd5 {[%emt 0:00:33]} Qxd5 {[%emt 0:00:08]} 23. Nd3 {[%emt 0:00:16]} Qc4 {[%emt 0:04:39]} 24. Re1 {[%emt 0:01:31]} Ne6 {[%emt 0:06:15]} 25. Bg3 {[%emt 0:02:30]} Bf6 {[%emt 0:06:09]} 26. Bf2 {[%emt 0:00:44]} a5 {[%emt 0:00:50]} 27. f4 {[%emt 0:04:54]} Qd5 {[%emt 0:03:31]} 28. g4 {[%emt 0:02:27]} Rb7 {[%emt 0:00:52]} 29. Kh2 {[%emt 0:07:12]} b5 {[%emt 0:00:55]} 30. axb5 {[%emt 0:00:08]} Qxb5 {[%emt 0:00:23]} 31. Qf3 {[%emt 0:01:05]} Rbc7 {[%emt 0:02:12]} 32. Ra2 {[%emt 0:03:38]} Nd8 {[%emt 0:00:51]} 33. f5 {[%emt 0:04:38]} g5 {[%emt 0:01:23]} 34. Bg3 {[%emt 0:01:15]} Ra7 {[%emt 0:00:27]} 35. Nb4 {[%emt 0:05:02]} Kg7 {[%emt 0:01:08]} 36. Nd5 {[%emt 0:00:41]} Qb3 {[%emt 0:00:20]} 37. Nxf6 {[%emt 0:02:48]} Qxa2 {[%emt 0:00:40]} 38. Nh5+ {[%emt 0:00:05]} Kg8 {[%emt 0:00:27]} 39. Bxd6 {[%emt 0:02:02]} Qxb2+ {[%emt 0:00:24]} 40. Re2 {[%emt 0:00:04]} Qxc3 {[%emt 0:00:40]} 41. Qxc3 {[%emt 0:40:34]} Rxc3 {[%emt 0:40:12]} 42. Bxe7 {[%emt 0:00:06]} Rxe7 {[%emt 0:00:00]} 43. Rxe7 {[%emt 0:00:00]} Kf8 {[%emt 0:00:00]} 44. f6 {[%emt 0:00:00]} Rc6 {[%emt 0:00:00]} 45. Rd7 {[%emt 0:00:00]} Ke8 {[%emt 0:00:00]} 46. Rd5 {[%emt 0:00:00]} Ne6 {[%emt 0:00:00]} 47. Re5 {[%emt 0:00:00]} a4 {[%emt 0:00:00]} 48. d5 {[%emt 0:00:00]} Rc5 {[%emt 0:00:00]} 49. Re4 {[%emt 0:00:00]} Rxd5 {[%emt 0:00:00]} 50. Rxa4 {[%emt 0:00:00]} Rd2+ {[%emt 0:00:00]} 51. Kg3 {[%emt 0:00:00]} Rd3+ {[%emt 0:00:00]} 52. Kg2 {[%emt 0:00:00]} Rd2+ {[%emt 0:00:00]} 53. Kf3 {[%emt 0:00:00]} Rd3+ {[%emt 0:00:00]} 54. Ke2 {[%emt 0:00:00]} Rxh3 {[%emt 0:00:00]} 55. Ra7 {[%emt 0:00:18]} Nf4+ {[%emt 0:00:00]} 56. Nxf4 {[%emt 0:00:06]} gxf4 {[%emt 0:00:00]} 57. Re7+ {[%emt 0:02:03]} Kf8 {[%emt 0:00:00]} 58. Re4 {[%emt 0:02:31]} h6 {[%emt 0:02:10]} 59. Rxf4 {[%emt 0:00:41]} Kg8 {[%emt 0:00:11]} 60. Rf5 {[%emt 0:01:02]} Kh7 {[%emt 0:00:36]} 61. Kf2 {[%emt 0:01:02]} Kg6 {[%emt 0:00:47]} 62. Kg2 {[%emt 0:00:04]} Rc3 {[%emt 0:00:14]} 63. Kh2 {[%emt 0:00:03]} Rc6 {[%emt 0:00:41]} 64. Kg3 {[%emt 0:00:03]} Rd6 {[%emt 0:02:57]} 65. Rh5 {[%emt 0:00:53]} Rxf6 {[%emt 0:00:12]} 66. Ra5 {[%emt 0:00:03]} Re6 {[%emt 0:00:21]} 67. Rb5 {[%emt 0:00:07]} f6 {[%emt 0:00:48]} 68. Ra5 {[%emt 0:00:06]} Re5 {[%emt 0:00:10]} 69. Ra8 {[%emt 0:00:21]} Rb5 {[%emt 0:00:20]} 70. Ra3 {[%emt 0:00:14]} Kg5 {[%emt 0:00:38]} 71. Rc3 {[%emt 0:00:12]} Re5 {[%emt 0:00:23]} 72. Ra3 {[%emt 0:00:13]} h5 {[%emt 0:01:10]} 73. gxh5 {[%emt 0:00:03]} f5 {[%emt 0:00:08]} 74. h6 {[%emt 0:00:16]} Kxh6 {[%emt 0:00:10]} 75. Kf4 {[%emt 0:00:07]} Re4+ {[%emt 0:00:07]} 76. Kxf5 {[%emt 0:08:04]} 1/2-1/2

[Event "Fagernes GM Swiss 2020"]
[Site "Fagernes"]
[Date "2020.10.05"]
[Round "2.13"]
[White "Mansoor, Afras"]
[Black "Holleland, Sigve"]
[Result "0-1"]
[ECO "E04"]
[WhiteElo "2117"]
[BlackElo "2133"]
[Annotator "NA"]
[PlyCount "120"]
[EventDate "2020.10.04"]
[EventType "swiss"]
[EventCountry "NOR"]
[SourceTitle "playchess.com"]
[Source "ChessBase"]
[SourceQuality "1"]
[TimeControl "40/6000+30:2400+30"]

1. c4 {[%emt 0:00:00]} c6 {[%emt 0:07:54]} 2. g3 {[%emt 0:00:00]} d5 {[%emt 0:00:12]} 3. Bg2 {[%emt 0:00:00]} Nf6 {[%emt 0:00:15]} 4. Nf3 {[%emt 0:00:00]} Nbd7 {[%emt 0:00:54]} 5. d4 {[%emt 0:05:00]} e6 {[%emt 0:01:45]} 6. O-O {[%emt 0:00:07]} dxc4 {[%emt 0:01:29]} 7. Qc2 {[%emt 0:10:00]} b5 {[%emt 0:02:11]} 8. b3 {[%emt 0:03:06]} cxb3 {[%emt 0:02:19]} 9. Qxc6 {[%emt 0:01:31]} Rb8 {[%emt 0:00:38]} 10. axb3 {[%emt 0:03:04]} Bb7 {[%emt 0:03:10]} 11. Qc2 {[%emt 0:00:07]} Qb6 {[%emt 0:03:52]} 12. Nbd2 {[%emt 0:04:36]} Be7 {[%emt 0:03:17]} 13. e4 {[%emt 0:05:39]} O-O {[%emt 0:06:00]} 14. Bb2 {[%emt 0:00:12]} Rbc8 {[%emt 0:02:04]} 15. Qd3 {[%emt 0:01:31]} a5 {[%emt 0:02:15]} 16. Rfc1 {[%emt 0:11:35]} h6 {[%emt 0:09:10]} 17. h3 {[%emt 0:15:19]} Ba6 {[%emt 0:05:18]} 18. Bf1 {[%emt 0:02:07]} Nb8 {[%emt 0:02:22]} 19. Qe3 {[%emt 0:05:47]} Nc6 {[%emt 0:04:01]} 20. g4 {[%emt 0:06:02]} Nb4 {[%emt 0:05:03]} 21. Bc3 {[%emt 0:01:21]} Bb7 {[%emt 0:02:21]} 22. Qe2 {[%emt 0:04:26]} Rfd8 {[%emt 0:07:10]} 23. Ne5 {[%emt 0:10:00]} Rxc3 {[%emt 0:07:29]} 24. Rxc3 {[%emt 0:00:04]} Qxd4 {[%emt 0:00:09]} 25. Rac1 {[%emt 0:04:26]} Qxe5 {[%emt 0:01:16]} 26. Nf3 {[%emt 0:04:31]} Qxe4 {[%emt 0:03:00]} 27. Qxb5 {[%emt 0:00:32]} Na2 {[%emt 0:08:25]} 28. Re3 {[%emt 0:03:30]} Qb4 {[%emt 0:01:54]} 29. Rc7 {[%emt 0:03:45]} Bxf3 {[%emt 0:04:07]} 30. Rxf3 {[%emt 0:01:03]} Nd5 {[%emt 0:05:37]} 31. Ra7 {[%emt 0:01:23]} Nac3 {[%emt 0:02:14]} 32. Qxa5 {[%emt 0:01:12]} Qxa5 {[%emt 0:01:11]} 33. Rxa5 {[%emt 0:00:02]} Rb8 {[%emt 0:00:38]} 34. Ra7 {[%emt 0:01:05]} Nb5 {[%emt 0:03:15]} 35. Rd7 {[%emt 0:02:04]} Nd4 {[%emt 0:00:45]} 36. Rd3 {[%emt 0:01:29]} Bf6 {[%emt 0:00:15]} 37. Bg2 {[%emt 0:00:32]} Nf4 {[%emt 0:00:49]} 38. Rd2 {[%emt 0:00:58]} Rxb3 {[%emt 0:01:01]} 39. Kh2 {[%emt 0:00:47]} Nf3+ {[%emt 0:00:19]} 40. Bxf3 {[%emt 0:00:07]} Rxf3 {[%emt 0:00:05]} 41. Rb7 {[%emt 0:01:14]} Rxh3+ {[%emt 0:00:19]} 42. Kg1 {[%emt 0:00:03]} Rd3 {[%emt 0:02:59]} 43. Rc2 {[%emt 0:01:03]} Rd1+ {[%emt 0:00:51]} 44. Kh2 {[%emt 0:00:06]} Be5 {[%emt 0:00:54]} 45. Rc8+ {[%emt 0:01:05]} Kh7 {[%emt 0:00:07]} 46. Rxf7 {[%emt 0:00:50]} Ng6+ {[%emt 0:02:43]} 47. Kh3 {[%emt 0:00:33]} Rd3+ {[%emt 0:00:31]} 48. Kg2 {[%emt 0:00:40]} Nf4+ {[%emt 0:01:52]} 49. Kg1 {[%emt 0:05:45]} Kg6 {[%emt 0:01:18]} 50. Rb7 {[%emt 0:00:44]} Kg5 {[%emt 0:01:27]} 51. Rb5 {[%emt 0:03:49]} Rd1+ {[%emt 0:00:49]} 52. Kh2 {[%emt 0:00:10]} Nd5+ {[%emt 0:01:11]} 53. Kg2 {[%emt 0:02:22]} Kxg4 {[%emt 0:00:31]} 54. Rc4+ {[%emt 0:03:03]} Nf4+ {[%emt 0:01:04]} 55. Kh2 {[%emt 0:00:08]} Kf5 {[%emt 0:00:28]} 56. Kg3 {[%emt 0:01:36]} g5 {[%emt 0:01:53]} 57. Ra4 {[%emt 0:06:11]} h5 {[%emt 0:01:52]} 58. Raa5 {[%emt 0:01:07]} h4+ {[%emt 0:00:30]} 59. Kh2 {[%emt 0:00:26]} Nd5+ {[%emt 0:00:56]} 60. Kg2 {[%emt 0:00:15]} g4 {[%emt 0:01:02]} 0-1

[Event "Fagernes GM Swiss 2020"]
[Site "Fagernes"]
[Date "2020.10.05"]
[Round "2.14"]
[White "Bjerke, Richard"]
[Black "Dahl, Trygve"]
[Result "0-1"]
[ECO "A96"]
[WhiteElo "2144"]
[BlackElo "2211"]
[Annotator "ChessBase"]
[PlyCount "50"]
[EventDate "2020.10.04"]
[EventType "swiss"]
[EventCountry "NOR"]
[SourceTitle "playchess.com"]
[Source "ChessBase"]
[SourceQuality "1"]
[TimeControl "40/6000+30:2400+30"]

1. d4 {[%emt 0:00:00]} f5 {[%emt 0:00:14]} 2. g3 {[%emt 0:00:05]} Nf6 {[%emt 0:03:07]} 3. Bg2 {[%emt 0:00:24]} e6 {[%emt 0:01:06]} 4. Nf3 {[%emt 0:00:30]} Be7 {[%emt 0:00:27]} 5. c4 {[%emt 0:00:36]} d6 {[%emt 0:00:35]} 6. Nc3 {[%emt 0:00:27]} O-O {[%emt 0:00:05]} 7. O-O {[%emt 0:00:11]} Ne4 {[%emt 0:00:04]} 8. Qc2 {[%emt 0:02:57]} Nxc3 {[%emt 0:00:07]} 9. Qxc3 {[%emt 0:00:56]} Bf6 {[%emt 0:00:04]} 10. Rd1 {[%emt 0:05:50]} a5 {[%emt 0:02:13]} 11. Qc2 {[%emt 0:06:46]} Nc6 {[%emt 0:09:14]} 12. e4 {[%emt 0:03:32]} Qe8 {[%emt 0:05:43]} 13. exf5 {[%emt 0:04:12]} exf5 {[%emt 0:01:19]} 14. a3 {[%emt 0:05:24]} a4 {[%emt 0:01:48]} 15. Bf4 {[%emt 0:04:37]} Qh5 {[%emt 0:00:56]} 16. c5 {[%emt 0:03:21]} g5 {[%emt 0:02:24]} 17. Qc4+ {[%emt 0:05:21]} Kh8 {[%emt 0:00:26]} 18. Be3 {[%emt 0:04:53]} f4 {[%emt 0:01:05]} 19. gxf4 {[%emt 0:03:23]} gxf4 {[%emt 0:04:02]} 20. Bxf4 {[%emt 0:00:35]} Bg4 {[%emt 0:00:36]} 21. Rd3 {[%emt 0:01:51]} Bg7 {[%emt 0:02:51]} 22. d5 {[%emt 0:03:51]} Na5 {[%emt 0:01:26]} 23. Qxa4 {[%emt 0:01:24]} Qf5 {[%emt 0:01:43]} 24. Rd4 {[%emt 0:00:25]} Bxf3 {[%emt 0:00:57]} 25. Bxf3 {[%emt 0:00:29]} Nb3 {[%emt 0:00:06]} 0-1

[Event "Fagernes GM Swiss 2020"]
[Site "Fagernes"]
[Date "2020.10.05"]
[Round "2.15"]
[White "Bentsen, Hakon"]
[Black "Shehzad, Shazil"]
[Result "0-1"]
[ECO "B92"]
[WhiteElo "2120"]
[BlackElo "2188"]
[Annotator "ChessBase"]
[PlyCount "48"]
[EventDate "2020.10.04"]
[EventType "swiss"]
[EventCountry "NOR"]
[SourceTitle "playchess.com"]
[Source "ChessBase"]
[SourceQuality "1"]
[TimeControl "40/6000+30:2400+30"]

1. e4 {[%emt 0:00:00]} c5 {[%emt 0:00:00]} 2. Nf3 {[%emt 0:00:00]} d6 {[%emt 0:00:02]} 3. d4 {[%emt 0:00:00]} cxd4 {[%emt 0:00:07]} 4. Nxd4 {[%emt 0:00:00]} Nf6 {[%emt 0:00:05]} 5. Nc3 {[%emt 0:00:02]} a6 {[%emt 0:00:05]} 6. Be2 {[%emt 0:00:26]} e5 {[%emt 0:00:07]} 7. Nb3 {[%emt 0:00:06]} Be7 {[%emt 0:00:06]} 8. O-O {[%emt 0:00:18]} O-O {[%emt 0:00:04]} 9. Be3 {[%emt 0:01:32]} Be6 {[%emt 0:00:06]} 10. Qd2 {[%emt 0:00:19]} Nc6 {[%emt 0:02:47]} 11. a4 {[%emt 0:02:29]} Rc8 {[%emt 0:01:21]} 12. Rfd1 {[%emt 0:01:49]} Re8 {[%emt 0:05:59]} 13. a5 {[%emt 0:01:48]} Nb4 {[%emt 0:06:51]} 14. Bf3 {[%emt 0:04:23]} Qc7 {[%emt 0:03:23]} 15. Ra4 {[%emt 0:03:22]} d5 {[%emt 0:19:32]} 16. exd5 {[%emt 0:04:48]} Nbxd5 {[%emt 0:01:55]} 17. Nxd5 {[%emt 0:06:12]} Nxd5 {[%emt 0:04:58]} 18. Bxd5 {[%emt 0:00:06]} Bxd5 {[%emt 0:00:31]} 19. Qxd5 {[%emt 0:02:41]} Red8 {[%emt 0:00:56]} 20. Qf3 {[%emt 0:01:23]} Qxc2 {[%emt 0:00:24]} 21. Raa1 {[%emt 0:12:59]} e4 {[%emt 0:03:06]} 22. Qg4 {[%emt 0:02:55]} f5 {[%emt 0:00:29]} 23. Nd4 {[%emt 0:00:18]} Rxd4 {[%emt 0:00:37]} 24. Rdc1 {[%emt 0:00:35]} Qxc1+ {[%emt 0:00:09]} 0-1

[Event "Fagernes GM Swiss 2020"]
[Site "Fagernes"]
[Date "2020.10.05"]
[Round "2.16"]
[White "Torngren, Gustav"]
[Black "Fuglestein, Sander"]
[Result "1-0"]
[ECO "B12"]
[WhiteElo "2185"]
[BlackElo "2109"]
[Annotator "ChessBase"]
[PlyCount "45"]
[EventDate "2020.10.04"]
[EventType "swiss"]
[EventCountry "NOR"]
[SourceTitle "playchess.com"]
[Source "ChessBase"]
[SourceQuality "1"]
[TimeControl "40/6000+30:2400+30"]

1. e4 {[%emt 0:00:00]} c6 {[%emt 0:00:00]} 2. d4 {[%emt 0:00:00]} d5 {[%emt 0:00:00]} 3. e5 {[%emt 0:00:00]} Bf5 {[%emt 0:00:00]} 4. h4 {[%emt 0:00:03]} h5 {[%emt 0:00:16]} 5. Bd3 {[%emt 0:00:21]} Bxd3 {[%emt 0:00:14]} 6. Qxd3 {[%emt 0:00:03]} e6 {[%emt 0:00:14]} 7. Bg5 {[%emt 0:00:10]} Qb6 {[%emt 0:01:11]} 8. Nd2 {[%emt 0:01:29]} Qa6 {[%emt 0:02:45]} 9. c4 {[%emt 0:00:32]} Bb4 {[%emt 0:02:29]} 10. b3 {[%emt 0:00:02]} Ne7 {[%emt 0:01:38]} 11. Ne2 {[%emt 0:00:04]} Nf5 {[%emt 0:02:01]} 12. Ng3 {[%emt 0:17:24]} Nxg3 {[%emt 0:01:33]} 13. fxg3 {[%emt 0:01:35]} Nd7 {[%emt 0:04:42]} 14. O-O {[%emt 0:01:27]} Bxd2 {[%emt 0:11:15]} 15. Qxd2 {[%emt 0:08:59]} dxc4 {[%emt 0:13:15]} 16. Qf4 {[%emt 0:07:53]} Rf8 {[%emt 0:05:14]} 17. Qf3 {[%emt 0:17:38]} Qb5 {[%emt 0:13:42]} 18. Qxh5 {[%emt 0:06:20]} cxb3 {[%emt 0:02:57]} 19. axb3 {[%emt 0:00:04]} Nb6 {[%emt 0:16:57]} 20. Ra2 {[%emt 0:04:26]} Qd3 {[%emt 0:04:24]} 21. Rxf7 {[%emt 0:09:27]} Rxf7 {[%emt 0:02:51]} 22. Rf2 {[%emt 0:00:36]} g6 {[%emt 0:00:32]} 23. Qh8+ {[%emt 0:00:08]} 1-0

[Event "Fagernes GM Swiss 2020"]
[Site "Fagernes"]
[Date "2020.10.05"]
[Round "2.17"]
[White "Machlik, Monika"]
[Black "Kvaloy, Aksel Bu"]
[Result "0-1"]
[ECO "E36"]
[WhiteElo "2082"]
[BlackElo "2174"]
[Annotator "NA"]
[PlyCount "138"]
[EventDate "2020.10.04"]
[EventType "swiss"]
[EventCountry "NOR"]
[SourceTitle "playchess.com"]
[Source "ChessBase"]
[SourceQuality "1"]
[TimeControl "40/6000+30:2400+30"]

1. d4 {[%emt 0:00:00]} Nf6 {[%emt 0:00:00]} 2. c4 {[%emt 0:00:00]} e6 {[%emt 0:00:00]} 3. Nc3 {[%emt 0:00:00]} Bb4 {[%emt 0:00:00]} 4. Qc2 {[%emt 0:00:00]} O-O {[%emt 0:00:09]} 5. a3 {[%emt 0:00:00]} Bxc3+ {[%emt 0:00:07]} 6. Qxc3 {[%emt 0:00:00]} d5 {[%emt 0:00:14]} 7. Nf3 {[%emt 0:00:15]} dxc4 {[%emt 0:00:21]} 8. Qxc4 {[%emt 0:00:05]} b6 {[%emt 0:00:10]} 9. Bg5 {[%emt 0:00:31]} Ba6 {[%emt 0:00:09]} 10. Qa4 {[%emt 0:00:11]} c5 {[%emt 0:00:20]} 11. dxc5 {[%emt 0:06:33]} bxc5 {[%emt 0:01:13]} 12. Rc1 {[%emt 0:01:26]} Qb6 {[%emt 0:00:13]} 13. Bxf6 {[%emt 0:00:17]} gxf6 {[%emt 0:00:05]} 14. Rc2 {[%emt 0:00:41]} Rd8 {[%emt 0:00:14]} 15. e3 {[%emt 0:01:53]} Bxf1 {[%emt 0:00:25]} 16. Rxf1 {[%emt 0:00:07]} Nc6 {[%emt 0:00:51]} 17. Ke2 {[%emt 0:05:48]} Na5 {[%emt 0:07:59]} 18. b4 {[%emt 0:02:30]} cxb4 {[%emt 0:01:27]} 19. axb4 {[%emt 0:00:43]} Qa6+ {[%emt 0:03:28]} 20. b5 {[%emt 0:02:44]} Qd6 {[%emt 0:00:35]} 21. Rd2 {[%emt 0:17:18]} Qc7 {[%emt 0:01:11]} 22. Rc2 {[%emt 0:18:12]} Qd6 {[%emt 0:00:33]} 23. Rd2 {[%emt 0:01:41]} Qb6 {[%emt 0:01:34]} 24. Rfd1 {[%emt 0:03:46]} Rxd2+ {[%emt 0:02:06]} 25. Rxd2 {[%emt 0:00:12]} Nb7 {[%emt 0:31:13]} 26. Rc2 {[%emt 0:11:16]} Nd6 {[%emt 0:07:50]} 27. Nd4 {[%emt 0:04:48]} Rc8 {[%emt 0:04:15]} 28. Rxc8+ {[%emt 0:05:12]} Nxc8 {[%emt 0:00:08]} 29. Nc6 {[%emt 0:03:16]} Qc5 {[%emt 0:03:38]} 30. g4 {[%emt 0:11:42]} Nb6 {[%emt 0:18:56]} 31. Qb4 {[%emt 0:06:16]} Qc2+ {[%emt 0:00:29]} 32. Ke1 {[%emt 0:03:34]} Nd5 {[%emt 0:04:22]} 33. Ne7+ {[%emt 0:00:47]} Nxe7 {[%emt 0:00:48]} 34. Qxe7 {[%emt 0:00:02]} Qb1+ {[%emt 0:01:06]} 35. Kd2 {[%emt 0:00:17]} Qxb5 {[%emt 0:02:05]} 36. Qxa7 {[%emt 0:01:57]} Qb4+ {[%emt 0:00:09]} 37. Ke2 {[%emt 0:01:52]} Qxg4+ {[%emt 0:00:51]} 38. Kf1 {[%emt 0:00:07]} Kg7 {[%emt 0:00:26]} 39. Qb6 {[%emt 0:01:51]} h5 {[%emt 0:01:26]} 40. Qb8 {[%emt 0:01:08]} h4 {[%emt 0:00:26]} 41. Qd6 {[%emt 0:06:38]} e5 {[%emt 0:03:36]} 42. Qc6 {[%emt 0:04:00]} h3 {[%emt 0:04:13]} 43. Qd5 {[%emt 0:00:55]} Kh6 {[%emt 0:04:01]} 44. Ke1 {[%emt 0:05:37]} Kg6 {[%emt 0:01:09]} 45. Qd3+ {[%emt 0:11:40]} Kg7 {[%emt 0:01:00]} 46. Kd2 {[%emt 0:00:50]} Qf3 {[%emt 0:02:35]} 47. Qe2 {[%emt 0:03:57]} Qg2 {[%emt 0:05:17]} 48. Ke1 {[%emt 0:05:58]} f5 {[%emt 0:09:22]} 49. f3 {[%emt 0:02:29]} Qg1+ {[%emt 0:01:04]} 50. Kd2 {[%emt 0:00:03]} Kg6 {[%emt 0:03:31]} 51. Qa6+ {[%emt 0:02:37]} f6 {[%emt 0:01:10]} 52. Qa8 {[%emt 0:00:27]} Qxh2+ {[%emt 0:04:39]} 53. Kc3 {[%emt 0:00:32]} Qg2 {[%emt 0:03:41]} 54. Qg8+ {[%emt 0:00:13]} Kh6 {[%emt 0:00:25]} 55. Qh8+ {[%emt 0:00:11]} Kg5 {[%emt 0:00:19]} 56. Qg7+ {[%emt 0:01:14]} Kh4 {[%emt 0:00:48]} 57. Qxf6+ {[%emt 0:00:22]} Kg3 {[%emt 0:00:08]} 58. Qxe5+ {[%emt 0:00:36]} Kf2 {[%emt 0:00:11]} 59. Qd4 {[%emt 0:01:27]} h2 {[%emt 0:01:42]} 60. Qd2+ {[%emt 0:00:36]} Kg3 {[%emt 0:01:15]} 61. Qd6+ {[%emt 0:00:14]} f4 {[%emt 0:01:30]} 62. Qg6+ {[%emt 0:00:55]} Kf2 {[%emt 0:00:29]} 63. Qc2+ {[%emt 0:00:10]} Kxf3 {[%emt 0:01:03]} 64. Qd1+ {[%emt 0:00:06]} Kg3 {[%emt 0:00:06]} 65. Qd4 {[%emt 0:00:59]} Qc6+ {[%emt 0:00:47]} 66. Kd2 {[%emt 0:00:04]} h1=Q {[%emt 0:00:30]} 67. Qxf4+ {[%emt 0:00:18]} Kg2 {[%emt 0:00:11]} 68. Qg4+ {[%emt 0:00:44]} Kf2 {[%emt 0:00:11]} 69. e4 {[%emt 0:01:00]} Qe1+ {[%emt 0:00:21]} 0-1

[Event "Fagernes GM Swiss 2020"]
[Site "Fagernes"]
[Date "2020.10.05"]
[Round "2.18"]
[White "Fossan, Aleksander"]
[Black "Oye-Stromberg, Alexander"]
[Result "1/2-1/2"]
[ECO "C01"]
[WhiteElo "2171"]
[BlackElo "2048"]
[Annotator "NA"]
[PlyCount "88"]
[EventDate "2020.10.04"]
[EventType "swiss"]
[EventCountry "NOR"]
[SourceTitle "playchess.com"]
[Source "ChessBase"]
[SourceQuality "1"]
[TimeControl "40/6000+30:2400+30"]

1. e4 {[%emt 0:00:56]} e6 {[%emt 0:00:00]} 2. d4 {[%emt 0:00:43]} d5 {[%emt 0:00:00]} 3. Bd3 {[%emt 0:00:19]} Nc6 {[%emt 0:01:43]} 4. c3 {[%emt 0:13:21]} e5 {[%emt 0:02:39]} 5. Ne2 {[%emt 0:10:16]} exd4 {[%emt 0:01:51]} 6. cxd4 {[%emt 0:19:37]} dxe4 {[%emt 0:05:27]} 7. Bxe4 {[%emt 0:00:07]} Nf6 {[%emt 0:03:28]} 8. Bf3 {[%emt 0:04:02]} Be7 {[%emt 0:08:24]} 9. h3 {[%emt 0:01:02]} O-O {[%emt 0:00:13]} 10. Nbc3 {[%emt 0:01:53]} Nb4 {[%emt 0:01:18]} 11. a3 {[%emt 0:06:51]} Nbd5 {[%emt 0:00:13]} 12. O-O {[%emt 0:05:34]} Be6 {[%emt 0:00:44]} 13. Bg5 {[%emt 0:05:12]} c6 {[%emt 0:01:00]} 14. Qd2 {[%emt 0:05:40]} Qd7 {[%emt 0:02:11]} 15. Rad1 {[%emt 0:01:01]} Rad8 {[%emt 0:00:14]} 16. Rfe1 {[%emt 0:01:28]} Rfe8 {[%emt 0:00:40]} 17. Nf4 {[%emt 0:18:52]} Nxc3 {[%emt 0:16:25]} 18. Qxc3 {[%emt 0:00:05]} Nd5 {[%emt 0:14:04]} 19. Bxd5 {[%emt 0:00:09]} Bxd5 {[%emt 0:00:51]} 20. Bxe7 {[%emt 0:00:36]} Rxe7 {[%emt 0:00:08]} 21. Nxd5 {[%emt 0:00:19]} Rxe1+ {[%emt 0:04:46]} 22. Rxe1 {[%emt 0:00:01]} Qxd5 {[%emt 0:00:27]} 23. Re7 {[%emt 0:00:49]} g6 {[%emt 0:01:00]} 24. Rxb7 {[%emt 0:02:18]} Qxd4 {[%emt 0:00:50]} 25. Qxd4 {[%emt 0:07:13]} Rxd4 {[%emt 0:00:05]} 26. Rxa7 {[%emt 0:00:23]} Rd1+ {[%emt 0:00:06]} 27. Kh2 {[%emt 0:00:03]} Rd2 {[%emt 0:00:05]} 28. Rb7 {[%emt 0:00:19]} Rxf2 {[%emt 0:01:07]} 29. a4 {[%emt 0:00:32]} Rf1 {[%emt 0:00:44]} 30. Rb6 {[%emt 0:04:22]} Ra1 {[%emt 0:03:29]} 31. b3 {[%emt 0:00:01]} c5 {[%emt 0:00:19]} 32. Kg3 {[%emt 0:00:58]} c4 {[%emt 0:05:58]} 33. bxc4 {[%emt 0:00:02]} Rxa4 {[%emt 0:00:05]} 34. Rc6 {[%emt 0:00:10]} Kf8 {[%emt 0:00:32]} 35. Kf4 {[%emt 0:00:42]} Ke7 {[%emt 0:00:14]} 36. Rc7+ {[%emt 0:01:23]} Kf6 {[%emt 0:12:34]} 37. g4 {[%emt 0:00:09]} g5+ {[%emt 0:03:20]} 38. Ke4 {[%emt 0:00:40]} Ra3 {[%emt 0:00:22]} 39. Rc6+ {[%emt 0:00:11]} Kg7 {[%emt 0:00:13]} 40. c5 {[%emt 0:00:56]} Rxh3 {[%emt 0:00:13]} 41. Rd6 {[%emt 0:01:30]} Kf8 {[%emt 0:04:49]} 42. Rd4 {[%emt 0:24:57]} Ke7 {[%emt 0:05:14]} 43. c6 {[%emt 0:02:26]} h5 {[%emt 0:17:51]} 44. gxh5 {[%emt 0:08:56]} Rxh5 {[%emt 0:00:33]} 1/2-1/2